fUSD/lending_fUSD_20240424
["ID","MTS","AMOUNT","RATE_DAILY","PERIOD"]
[323363767,1713921047003,-302.88261904,0.00010958,2]
[323363768,1713921047051,-197.11738096,0.00010958,2]
[323363769,1713921047061,-298.62997699,0.00010958,2]
[323363770,1713921047072,-201.37002301,0.00010958,2]
[323363771,1713921047081,-268.19585711,0.00010958,2]
[323363772,1713921047093,-231.80414289,0.00010958,2]
[323363773,1713921047102,-500.0,0.00010958,2]
[323363774,1713921047111,-245.99129612,0.00010958,2]
[323363775,1713921047761,-250.0,0.00010723,2]
[323363776,1713921047770,-2.38650973,0.00010958,2]
[323363777,1713921047781,-251.62219415,0.00010958,2]
[323363778,1713921047790,-262.61572006,0.00010958,2]
[323363779,1713921047885,-237.38427994,0.00010958,2]
[323363780,1713921047894,-247.66988734,0.00010958,2]
[323363781,1713921047923,-493.706,0.000109,2]
[323363782,1713921047933,-523.27529347,0.000109,2]
[323363783,1713921047994,-487.46117264,0.000109,2]
[323363785,1713921316073,-3110.31127576,8.459e-05,2]
[323363786,1713921326163,-150.0,8.46e-05,2]
[323363787,1713921326241,-150.0,8.46e-05,2]
[323363788,1713921326298,-150.0,8.46e-05,2]
[323363789,1713921326362,-84.48151934,8.46e-05,2]
[323363790,1713921356121,-150.0,8.461e-05,2]
[323363791,1713921356269,-150.0,8.461e-05,2]
[323363792,1713921356340,-88.31,8.461e-05,2]
[323363793,1713921389875,151.0,0.00019482,120]
[323363794,1713921596960,150.0,8.219e-05,2]
[323363795,1713921596984,150.0,8.219e-05,2]
[323363796,1713921597006,117.01,8.219e-05,2]
[323363797,1713921896750,151.0,0.00020469,120]
[323363798,1713922123450,150.0,8.219e-05,2]
[323363799,1713922123471,150.0,8.219e-05,2]
[323363800,1713922123492,118.66,8.219e-05,2]
[323363801,1713922231732,-155.0,9.999e-05,2]
[323363802,1713922231743,-150.0,9.999e-05,2]
[323363803,1713922231753,-55.22152526,0.0001,2]
[323363804,1713922231765,-322.91174239,0.0001,2]
[323363806,1713922231952,-6697.95999806,0.0001,2]
[323363807,1713922232012,-22923.90673429,0.0001,2]
[323363808,1713922232021,-5000.0,0.00010088,2]
[323363809,1713922232031,-6135.82,0.00010089,2]
[323363810,1713922232040,-490.83,0.00010092,2]
[323363814,1713922232343,-1000.0,0.00010094,2]
[323363815,1713922232353,-176.61,0.0001021,2]
[323363816,1713922232363,-418.66,0.00010482,2]
[323363817,1713922232373,-1578.21026288,0.00010848,2]
[323363818,1713922232384,-1161.244,0.0001085,2]
[323363819,1713922232394,-1000.0,0.00010858,2]
[323363820,1713922232404,-1199.7711,0.00010858,2]
[323363821,1713922232413,-680.438,0.00010858,2]
[323363822,1713922232425,-827.1477,0.00010858,2]
[323363823,1713922232435,-1927.9047,0.00010858,2]
[323363824,1713922232445,-499.99,0.00010858,2]
[323363825,1713922232455,-500.0,0.0001087,2]
[323363826,1713922232465,-553.71,0.0001087,2]
[323363827,1713922232475,-10948.37311891,0.000109,2]
[323363828,1713922232485,-252.43351437,0.000109,2]
[323363829,1713922232495,-63910.3735,0.000109,2]
[323363830,1713922232504,-2500.0,0.000109,2]
[323363831,1713922232514,-373.7096023,0.00010948,2]
[323363832,1713922232523,-755.4746667,0.00010948,2]
[323363833,1713922232533,-4552.5635632,0.00010948,2]
[323363834,1713922232544,-781.3389239,0.00010948,2]
[323363835,1713922232553,-447.5104422,0.00010948,2]
[323363836,1713922232562,-649.49380524,0.00010948,2]
[323363837,1713922232571,-556.72772622,0.00010951,2]
[323363838,1713922232580,-157.25440059,0.00010956,2]
[323363839,1713922232589,-269.63379421,0.00010957,2]
[323363840,1713922232598,-1000.0,0.00010959,2]
[323363841,1713922232608,-1000.0,0.00010959,2]
[323363842,1713922232617,-1000.0,0.00010959,2]
[323363843,1713922232626,-14236.96,0.00010959,2]
[323363844,1713922232635,-2000.0,0.00010959,3]
[323363845,1713922232645,-6541.84556746,0.00010987,2]
[323363846,1713922232654,-786.99155585,0.00010998,2]
[323363847,1713922232664,-2215.04376637,0.00010998,2]
[323363848,1713922232673,-1735.41538762,0.00010998,2]
[323363849,1713922232683,-868.83711782,0.00010998,2]
[323363850,1713922232692,-7592.98827849,0.00010998,2]
[323363851,1713922232702,-5174.60019696,0.00010998,2]
[323363852,1713922232710,-155.0,0.00010998,2]
[323363853,1713922232719,-831.69906501,0.00010999,2]
[323363854,1713922232728,-177.77065721,0.00010999,2]
[323363855,1713922232737,-30000.0,0.00011,2]
[323363856,1713922232746,-128273.29684347,0.00011,2]
[323363864,1713922237693,-1299.97148334,0.00011,2]
[323363871,1713922237901,-384.73319132,0.00011,2]
[323363872,1713922237912,-88596.57227346,0.00011,2]
[323363960,1713922242218,-709.52499917,0.00011,2]
[323363961,1713922242230,-323.07,0.00011,2]
[323363962,1713922242519,-649.19744378,0.00011,2]
[323363964,1713922242551,-2560.0,0.00011,2]
[323363980,1713922242869,-280.98266447,0.00011,2]
[323363981,1713922242901,-616.289184,0.00011,2]
[323363982,1713922243008,-19071.98725536,0.00011,2]
[323363983,1713922243119,-758.32918042,0.00011,2]
[323363986,1713922245862,-42.73752923,0.00010999,2]
[323363987,1713922245874,-1287.23659122,0.00010999,2]
[323363988,1713922245933,-3670.02587955,0.00010999,2]
[323363989,1713922245943,-2083.97412045,0.00011,2]
[323363990,1713922246067,-1221.72,0.00011,2]
[323363991,1713922246078,-456.80005735,0.00011,2]
[323363992,1713922246124,-2000.0,0.00011,2]
[323363993,1713922265740,5330.0,0.00019,31]
[323363994,1713922268406,150.0,8.46e-05,2]
[323363995,1713922268426,150.0,8.46e-05,2]
[323363996,1713922268450,150.0,8.46e-05,2]
[323363997,1713922268471,150.0,8.46e-05,2]
[323363998,1713922268491,150.0,8.46e-05,2]
[323363999,1713922268511,150.0,8.46e-05,2]
[323364000,1713922268534,150.0,8.46e-05,2]
[323364001,1713922268555,150.0,8.46e-05,2]
[323364002,1713922268575,150.0,8.46e-05,2]
[323364003,1713922268595,150.0,8.46e-05,2]
[323364004,1713922268615,150.0,8.46e-05,2]
[323364005,1713922268636,150.0,8.46e-05,2]
[323364006,1713922268655,150.0,8.46e-05,2]
[323364007,1713922268681,8050.0,8.46e-05,2]
[323364008,1713922272408,150.0,8.219e-05,2]
[323364009,1713922272429,150.0,8.219e-05,2]
[323364010,1713922272451,150.0,8.219e-05,2]
[323364011,1713922272471,150.0,8.219e-05,2]
[323364012,1713922272493,150.0,8.219e-05,2]
[323364013,1713922272514,150.0,8.219e-05,2]
[323364014,1713922272535,150.0,8.219e-05,2]
[323364015,1713922272555,150.0,8.219e-05,2]
[323364016,1713922272576,150.0,8.219e-05,2]
[323364017,1713922272597,150.0,8.219e-05,2]
[323364018,1713922272618,150.0,8.219e-05,2]
[323364019,1713922272639,150.0,8.219e-05,2]
[323364020,1713922272660,150.0,8.219e-05,2]
[323364021,1713922272681,150.0,8.219e-05,2]
[323364022,1713922272704,150.0,8.219e-05,2]
[323364023,1713922272725,150.0,8.219e-05,2]
[323364024,1713922272747,150.0,8.219e-05,2]
[323364025,1713922272768,150.0,8.219e-05,2]
[323364026,1713922272789,150.0,8.219e-05,2]
[323364027,1713922272810,150.0,8.219e-05,2]
[323364028,1713922272831,150.0,8.219e-05,2]
[323364029,1713922272852,224.92925051,8.219e-05,2]
[323364030,1713922272872,150.0,8.219e-05,2]
[323364031,1713922272894,150.0,8.219e-05,2]
[323364032,1713922272914,150.0,8.219e-05,2]
[323364033,1713922272936,150.0,8.219e-05,2]
[323364034,1713922272960,150.0,8.219e-05,2]
[323364035,1713922272985,150.0,8.219e-05,2]
[323364036,1713922273007,150.0,8.219e-05,2]
[323364037,1713922273028,150.0,8.219e-05,2]
[323364038,1713922273050,150.0,8.219e-05,2]
[323364039,1713922273074,3463.07180843,8.219e-05,2]
[323364040,1713922329060,7176.61691581,8.46e-05,2]
[323364041,1713922336103,151.0,0.00019616,120]
[323364042,1713922437498,3749.7,8e-05,3]
[323364043,1713922731832,151.0,0.00020469,120]
[323364045,1713922817828,171.70598371,0.00021648,60]
[323364046,1713923045048,2400.0,0.000251,120]
[323364047,1713923094089,151.0,0.00020469,120]
[323364059,1713923431950,-1964.00000049,8.457e-05,2]
[323364060,1713923431959,-535.62377888,8.458e-05,2]
[323364061,1713923431969,-489.19,8.635e-05,2]
[323364062,1713923431979,-5000.0,0.0001,2]
[323364063,1713923431988,-482.35,0.00010477,2]
[323364064,1713923431998,-1951.64,0.00010488,2]
[323364065,1713923432008,-151.86,0.0001049,2]
[323364066,1713923432017,-150.0,0.00010497,2]
[323364067,1713923432027,-1000.0,0.00010516,2]
[323364068,1713923432036,-325.42,0.00010561,2]
[323364069,1713923432046,-499.99,0.0001089,2]
[323364070,1713923432055,-276.366,0.00010898,2]
[323364071,1713923432065,-489.19,0.00010899,2]
[323364072,1713923432073,-1225.9393,0.000109,2]
[323364073,1713923432082,-599.16,0.000109,2]
[323364074,1713923432093,-12693.68038034,0.00010907,2]
[323364075,1713923432102,-203.59,0.00010908,2]
[323364076,1713923432111,-1000.0,0.00010959,2]
[323364077,1713923432120,-1000.0,0.00010959,2]
[323364078,1713923432131,-1000.0,0.00010959,2]
[323364079,1713923432140,-1243.64,0.00010959,3]
[323364080,1713923432149,-4952.4603881,0.00010991,2]
[323364081,1713923432158,-1112.7424827,0.00010992,2]
[323364082,1713923432167,-352.0,0.00011,2]
[323364083,1713923432177,-1697.003,0.00011,2]
[323364084,1713923432186,-1000.0,0.00011,2]
[323364085,1713923432196,-3475.6296,0.00011,2]
[323364086,1713923432205,-18642.34429349,0.00011,2]
[323364087,1713923432268,-255.15907455,0.00011,2]
[323364088,1713923432280,-779.54000024,0.00011,2]
[323364089,1713923432305,-1669.53985544,0.00011,2]
[323364090,1713923432367,-1346.78709982,0.00011,2]
[323364108,1713923437955,-2514.14874685,0.00011,2]
[323364109,1713923437967,-1753.89266644,0.00011,2]
[323364110,1713923437979,-4190.85538286,0.00011,2]
[323364111,1713923438014,-26565.64266164,0.00011,2]
[323364112,1713923438025,-1424.15060625,0.00011,2]
[323364118,1713923438887,-1478.26174416,0.00011,2]
[323364120,1713923439972,-811.1006832,0.00011,2]
[323364121,1713923440030,-1050.0,0.00011,2]
[323364122,1713923440087,-419.79014426,0.00011,2]
[323364123,1713923440144,-3037.06021239,0.00011,2]
[323364135,1713923442976,-3033.69858913,0.00011,2]
[323364138,1713923442988,-6868.49704759,0.00011,2]
[323364139,1713923443194,-431.14619254,0.00011,2]
[323364145,1713923446024,-3360.75855785,0.00011,2]
[323364146,1713923446035,-6026.70318445,0.00011,2]
[323364210,1713923611217,151.0,0.00019763,120]
[323364211,1713923879621,236.0,0.000251,120]
[323364215,1713923944128,151.0,0.00020469,120]
[323364216,1713924369396,151.0,0.00020469,120]
[323364266,1713924632107,-397.08384421,8.906e-05,2]
[323364267,1713924632119,-65.78615579,8.906e-05,2]
[323364268,1713924632128,-175.79,0.0001075,2]
[323364269,1713924632138,-151.86,0.00010785,2]
[323364270,1713924632150,-5000.0,0.00010792,2]
[323364272,1713924632161,-1450.10723343,0.00010793,2]
[323364274,1713924632173,-3671.55868383,0.00010793,2]
[323364276,1713924632192,-280.56667432,0.00010793,2]
[323364279,1713924632219,-9150.39274161,0.00010793,2]
[323364284,1713924632277,-1739.4,0.00010793,2]
[323364287,1713924632289,-6307.57466681,0.00010793,2]
[323364288,1713924632298,-508.48,0.00010821,2]
[323364290,1713924632308,-1000.0,0.00010826,2]
[323364291,1713924632317,-1069.19938,0.0001089,2]
[323364292,1713924632327,-1019.518862,0.00010959,2]
[323364293,1713924632336,-441.44,0.00010959,2]
[323364294,1713924632346,-856.4361881,0.00010992,2]
[323364295,1713924632355,-349.8355639,0.00010992,2]
[323364296,1713924632364,-499.99,0.00010992,2]
[323364297,1713924632373,-954.1477656,0.00010992,2]
[323364298,1713924632384,-338.47689987,0.00010992,2]
[323364299,1713924632396,-1311.52310013,0.00010992,2]
[323364300,1713924633876,800.0,0.00025099,120]
[323364308,1713924638220,-1209.5793486,0.00010992,2]
[323364309,1713924638230,-520.43010297,0.00011,2]
[323364310,1713924638242,-16900.57716399,0.00011,2]
[323364311,1713924638254,-3135.29369272,0.00011,2]
[323364312,1713924638352,-771.65526251,0.00011,2]
[323364324,1713924640193,-11588.0,0.00011,2]
[323364325,1713924640414,-729.14559276,0.00011,2]
[323364326,1713924640425,-2828.832935,0.00011,2]
[323364327,1713924640435,-2089.66046276,0.00011,2]
[323364343,1713924643408,-322.1198443,0.00011,2]
[323364344,1713924643420,-12634.88800001,0.00011,2]
[323364345,1713924643432,-8075.00000005,0.00011,2]
[323364354,1713924646352,-8263.45207089,0.00011,2]
[323364366,1713925832469,-487.689328,8.665e-05,2]
[323364367,1713925832478,-461.76,8.666e-05,2]
[323364368,1713925832487,-341.91579263,0.00010495,2]
[323364370,1713925838586,-424.73405845,0.00010495,2]
[323364371,1713925838603,-4233.35014892,0.00010495,2]
[323364372,1713925838612,-520.27,0.00010496,2]
[323364373,1713925838622,-992.79169351,0.00010498,2]
[323364374,1713925838641,-655.47272516,0.00010498,2]
[323364376,1713925838713,-531.79482725,0.00010498,2]
[323364382,1713925838813,-11611.04075408,0.00010498,2]
[323364383,1713925838823,-176.6,0.00010737,2]
[323364384,1713925838833,-1000.0,0.00010835,2]
[323364385,1713925838843,-160.4036065,0.0001089,2]
[323364386,1713925838853,-461.76,0.0001093,2]
[323364387,1713925838862,-499.99,0.0001093,2]
[323364388,1713925838872,-206.6808655,0.00010991,2]
[323364389,1713925838881,-436.68805873,0.00010991,2]
[323364390,1713925838891,-2248.1023785,0.00010991,2]
[323364391,1713925838901,-745.85455,0.00010991,2]
[323364392,1713925838912,-572.7678325,0.00010991,2]
[323364393,1713925838921,-2346.66563379,0.00010999,2]
[323364394,1713925838930,-983755.18437178,0.00011,2]
[323364399,1713925840441,-974.90789925,0.00011,2]
[323364400,1713925843696,-4844.99999999,0.00011,2]
[323364414,1713925846430,-861.80000004,0.00011,2]
[323364415,1713925846540,-4091.07739796,0.00011,2]
[323364416,1713925846553,-1043.92338388,0.00011,2]
[323364417,1713925846600,-966.75003935,0.00011,2]
[323364419,1713926101917,151.0,0.00020469,120]
[323364425,1713926532665,151.0,0.00020469,120]
[323364428,1713926587224,-415.58,8.434e-05,2]
[323364429,1713926587246,-3589.3351555,8.672e-05,2]
[323364430,1713926587268,-3589.3351555,8.672e-05,2]
[323364431,1713926587290,-3173.7551555,8.672e-05,2]
[323364436,1713926763689,151.0,0.00020469,120]
[323364455,1713927037650,-5000.0,0.0001,2]
[323364456,1713927037660,-467.13,0.00010223,2]
[323364457,1713927037670,-1000.0,0.00010228,2]
[323364458,1713927037679,-151.86,0.0001027,2]
[323364459,1713927037689,-1870.04361601,0.00010518,2]
[323364460,1713927037698,-1870.04361601,0.00010518,2]
[323364461,1713927037707,-175.37,0.00010519,2]
[323364462,1713927037717,-160.07987315,0.00010572,2]
[323364463,1713927037726,-150.0,0.00010658,2]
[323364464,1713927037736,-415.58,0.00010698,2]
[323364465,1713927037746,-2050.12346855,0.00010885,2]
[323364466,1713927037755,-157.36703976,0.0001089,2]
[323364467,1713927037764,-200.0,0.000109,3]
[323364468,1713927037773,-500.0,0.00010911,2]
[323364469,1713927037782,-500.0,0.00010912,2]
[323364470,1713927037792,-500.0,0.00010912,2]
[323364471,1713927037801,-499.99,0.00010912,2]
[323364472,1713927037810,-1000.0,0.00010959,2]
[323364473,1713927037819,-1000.0,0.00010959,2]
[323364474,1713927037829,-6840.1447527,0.00010992,2]
[323364475,1713927037838,-343.4147939,0.00010992,2]
[323364476,1713927037847,-494.61823561,0.00010992,2]
[323364477,1713927037857,-1089.429256,0.00010992,2]
[323364478,1713927037867,-12433.299201,0.00010992,2]
[323364479,1713927037878,-3075.0178473,0.00010992,2]
[323364480,1713927037887,-87730.48830028,0.00011,2]
[323364481,1713927037927,-37188.70541253,0.00011,2]
[323364482,1713927037937,-910.37,0.00011,2]
[323364483,1713927037947,-300.67,0.00011,2]
[323364484,1713927037956,-413.64,0.00011,2]
[323364485,1713927037965,-413.64,0.00011,2]
[323364486,1713927037975,-302.01,0.00011,2]
[323364487,1713927037984,-150.0,0.00011,2]
[323364488,1713927037993,-910.37,0.00011,2]
[323364489,1713927038003,-375.74,0.00011,2]
[323364490,1713927038012,-910.37,0.00011,2]
[323364491,1713927038021,-419.16,0.00011,2]
[323364492,1713927038030,-413.64,0.00011,2]
[323364493,1713927038039,-150.0,0.00011,2]
[323364494,1713927038049,-419.16,0.00011,2]
[323364495,1713927038058,-910.37,0.00011,2]
[323364496,1713927038067,-150.0,0.00011,2]
[323364497,1713927038077,-413.64,0.00011,2]
[323364498,1713927038086,-150.0,0.00011,2]
[323364499,1713927038094,-419.16,0.00011,2]
[323364500,1713927038104,-248.28,0.00011,2]
[323364501,1713927038113,-352.0,0.00011,2]
[323364502,1713927038123,-672.5015,0.00011,2]
[323364503,1713927038133,-1000.0,0.00011,2]
[323364504,1713927038141,-1237.8148,0.00011,2]
[323364505,1713927038150,-223.0,0.00011,2]
[323364506,1713927038159,-1009.9594,0.00011,2]
[323364507,1713927038168,-890.99948,0.00011,2]
[323364508,1713927038178,-12612.69935695,0.00011033,2]
[323364509,1713927038187,-1952.37133211,0.00011034,2]
[323364510,1713927038196,-413.05,0.00011096,2]
[323364511,1713927038206,-171.21471782,0.00011259,2]
[323364512,1713927038215,-234.16912747,0.00011259,2]
[323364513,1713927038224,-171.2147178,0.00011315,2]
[323364514,1713927038233,-306.31218708,0.00011348,2]
[323364515,1713927038242,-2302.59,0.00011359,2]
[323364516,1713927038251,-1396.341,0.00011359,2]
[323364517,1713927038259,-970.0,0.00011359,2]
[323364518,1713927038268,-462.0,0.00011359,2]
[323364519,1713927038277,-1228.0,0.00011359,2]
[323364520,1713927038286,-1260.11,0.00011359,2]
[323364521,1713927038295,-542.0,0.00011359,2]
[323364522,1713927038305,-257.973,0.00011359,2]
[323364523,1713927038314,-437.47,0.00011359,2]
[323364524,1713927038323,-807.0,0.00011359,2]
[323364525,1713927038332,-610.0,0.00011359,2]
[323364526,1713927038341,-1859.0,0.00011359,2]
[323364527,1713927038350,-402.0,0.00011359,2]
[323364528,1713927038358,-2448.434,0.00011359,2]
[323364529,1713927038367,-1475.343,0.00011359,2]
[323364530,1713927038376,-3121.0,0.00011359,2]
[323364531,1713927038385,-150.326,0.00011359,2]
[323364532,1713927038394,-150.215,0.00011359,2]
[323364533,1713927038402,-214.0,0.00011359,2]
[323364534,1713927038412,-1642.125,0.00011359,2]
[323364535,1713927038421,-444.005,0.00011359,2]
[323364536,1713927038430,-1143.086,0.00011359,2]
[323364537,1713927038439,-320.659,0.00011359,2]
[323364538,1713927038449,-5731.0,0.00011359,2]
[323364539,1713927038459,-37702.0,0.00011359,2]
[323364540,1713927038470,-5909.882,0.00011359,2]
[323364541,1713927038479,-2711.857,0.00011359,2]
[323364542,1713927038488,-1056.0,0.00011359,2]
[323364543,1713927038498,-212.1,0.00011359,2]
[323364544,1713927038507,-837.93,0.0001137,2]
[323364545,1713927038517,-171.2147178,0.0001137,2]
[323364546,1713927038527,-171.2147178,0.00011426,2]
[323364547,1713927038536,-11754.6178,0.00011443,2]
[323364548,1713927038546,-298.0965,0.00011443,2]
[323364549,1713927038555,-327.3971,0.00011445,2]
[323364550,1713927038566,-5259.9581,0.00011445,2]
[323364551,1713927038578,-160.07987314,0.00011446,2]
[323364552,1713927038589,-169.94657607,0.00011449,2]
[323364553,1713927038598,-174.12900969,0.00011449,2]
[323364554,1713927038607,-12334.81587036,0.00011449,2]
[323364555,1713927038616,-685939.43705417,0.0001148,2]
[323364556,1713927038625,-171.2147178,0.00011481,2]
[323364557,1713927038635,-173.56943638,0.00011481,2]
[323364558,1713927038644,-175.21199353,0.000115,2]
[323364559,1713927038654,-1757.0,0.000115,2]
[323364560,1713927038663,-218.9607855,0.00011505,2]
[323364561,1713927038672,-1000.0,0.00011507,2]
[323364562,1713927038681,-306.31218708,0.00011536,2]
[323364563,1713927038690,-7232.67944314,0.00011544,2]
[323364564,1713927038699,-7910.02481533,0.00011544,2]
[323364577,1713927042712,-345.73108205,0.00011544,2]
[323364588,1713927045728,-691.91999996,0.00011544,2]
[323364589,1713927045828,-993.06454,0.00011544,2]
[323364593,1713927348113,151.0,0.00020469,120]
[323364595,1713927603221,-316.95460185,0.0002736,120]
[323364596,1713927603244,-1655.92,0.00027397,120]
[323364597,1713927603265,-1655.92,0.00027397,120]
[323364598,1713927603287,-1655.92,0.00027397,120]
[323364599,1713927603310,-1655.92,0.00027397,120]
[323364600,1713927603331,-1655.92,0.00027397,120]
[323364601,1713927603351,-1655.92,0.00027397,120]
[323364602,1713927603372,-1655.92,0.00027397,120]
[323364603,1713927603395,-1655.92,0.00027397,120]
[323364604,1713927603416,-1655.92,0.00027397,120]
[323364605,1713927603437,-1655.92,0.00027397,120]
[323364606,1713927603461,-1655.92,0.00027397,120]
[323364607,1713927603486,-1655.92,0.00027397,120]
[323364608,1713927603508,-1655.92,0.00027397,120]
[323364609,1713927603531,-1655.92,0.00027397,120]
[323364610,1713927603552,-1655.92,0.00027397,120]
[323364611,1713927603573,-1655.92,0.00027397,120]
[323364612,1713927603594,-1655.92,0.00027397,120]
[323364613,1713927603615,-1655.92,0.00027397,120]
[323364614,1713927603637,-1655.92,0.00027397,120]
[323364615,1713927603658,-1655.92,0.00027397,120]
[323364616,1713927603683,-1655.92,0.00027397,120]
[323364617,1713927603704,-1655.92,0.00027397,120]
[323364618,1713927603725,-1655.92,0.00027397,120]
[323364619,1713927603747,-1655.92441848,0.00027397,120]
[323364620,1713927603774,-1094.77487085,0.000285,120]
[323364621,1713927603800,-560.78331533,0.0003,120]
[323364622,1713927603821,-2500.0,0.0003,120]
[323364628,1713927713663,434.13869625,0.0003,120]
[323364630,1713927727849,434.13869625,0.0003,120]
[323364631,1713927740887,-1389.41857168,8.585e-05,2]
[323364632,1713927740909,-565.47204423,8.585e-05,2]
[323364633,1713927740931,-1870.04361601,8.585e-05,2]
[323364634,1713927740952,-1870.04361601,8.586e-05,2]
[323364635,1713927740973,-370.06678389,8.587e-05,2]
[323364636,1713927740995,-392.1,8.593e-05,2]
[323364637,1713927744478,150.0,8.585e-05,2]
[323364638,1713927744500,150.0,8.585e-05,2]
[323364639,1713927744520,150.0,8.585e-05,2]
[323364640,1713927744540,150.0,8.585e-05,2]
[323364641,1713927744560,150.0,8.585e-05,2]
[323364642,1713927744581,1120.04361601,8.585e-05,2]
[323364643,1713927749634,437.30796485,0.0003,120]
[323364650,1713927779926,1031.91,0.0003,120]
[323364655,1713927828549,2483.90884929,0.0003,120]
[323364656,1713927842770,151.0,0.00021125,120]
[323364657,1713927844226,1031.91,0.0003,120]
[323364658,1713927876794,7042.60276635,0.0003,120]
[323364659,1713927906456,417.20226166,0.0003,120]
[323364660,1713928059622,10000.0,0.0003,120]
[323364661,1713928074373,6913.81,0.0003,120]
[323364662,1713928127080,10000.0,0.0003,120]
[323364663,1713928143600,10000.0,0.0003,120]
[323364674,1713928153856,372.49,8.496e-05,2]
[323364675,1713928155698,2702.17617768,0.0003,120]
[323364686,1713928231646,-417.46,0.00010396,2]
[323364687,1713928231656,-52.36778,0.00010414,2]
[323364694,1713928231863,-123.00222,0.00010414,2]
[323364695,1713928231878,-476.99778,0.00010453,2]
[323364696,1713928231890,-123.00222,0.00010453,2]
[323364697,1713928231899,-400.0,0.00010556,2]
[323364698,1713928231911,-372.49,0.0001076,2]
[323364699,1713928231921,-104.50778,0.00010959,2]
[323364700,1713928231972,-369.95948262,0.00010959,2]
[323364701,1713928231984,-467.5,0.00010959,2]
[323364826,1713928238342,-6988.41,0.00010959,2]
[323364827,1713928238444,-703.31273738,0.00010959,2]
[323364828,1713928238454,-2441.80737324,0.00010969,2]
[323364829,1713928238467,-7592.39911735,0.00010969,2]
[323364830,1713928238477,-2713.887,0.00010973,2]
[323364831,1713928238486,-5913.864,0.00010973,2]
[323364832,1713928238496,-5731.0,0.00010973,2]
[323364833,1713928238506,-37702.0,0.00010973,2]
[323364834,1713928238515,-1056.0,0.00010973,2]
[323364835,1713928238525,-42161.45194872,0.0001099,2]
[323364836,1713928238535,-150.99,0.0001099,2]
[323364837,1713928238544,-6560.35529869,0.00010991,2]
[323364838,1713928238554,-4000.0,0.00011,2]
[323364839,1713928238564,-672.0,0.000112,2]
[323364840,1713928238574,-1000.0,0.000112,2]
[323364841,1713928238583,-223.0,0.000112,2]
[323364842,1713928238593,-343.3913,0.00011258,2]
[323364843,1713928238603,-1000.0,0.00011258,2]
[323364844,1713928238613,-460.8712,0.00011313,2]
[323364845,1713928238623,-9826.0525,0.0001138,2]
[323364846,1713928238634,-559.927,0.00011413,2]
[323364847,1713928238644,-1010.009,0.00011413,2]
[323364848,1713928238654,-1399.802,0.00011413,2]
[323364849,1713928238663,-2304.871,0.00011413,2]
[323364850,1713928238673,-542.0,0.00011413,2]
[323364851,1713928238683,-1228.0,0.00011413,2]
[323364852,1713928238694,-1261.235,0.00011413,2]
[323364853,1713928238705,-258.321,0.00011413,2]
[323364854,1713928238715,-467.756,0.00011413,2]
[323364855,1713928238725,-610.0,0.00011413,2]
[323364856,1713928238735,-807.0,0.00011413,2]
[323364857,1713928238745,-1859.0,0.00011413,2]
[323364858,1713928238754,-213.005,0.00011413,2]
[323364859,1713928238764,-1547.58,0.00011413,2]
[323364860,1713928238773,-3121.0,0.00011413,2]
[323364861,1713928238783,-2455.937,0.00011413,2]
[323364862,1713928238793,-402.0,0.00011413,2]
[323364863,1713928238802,-153.519,0.00011413,2]
[323364864,1713928238812,-1647.609,0.00011413,2]
[323364865,1713928238822,-218.0,0.00011413,2]
[323364866,1713928238832,-1140.0,0.00011413,2]
[323364867,1713928238843,-195.0,0.00011413,2]